Cogmind - Beta 16 @@@ ROGUE MODE // 2026.01.30 @ 00:25:22 Player: Decinym Result: Destroyed by YI-UF0 with YI-UF0's Doublenader Performance ------------- Evolutions (0) 0 Regions Visited (2) 400 Robots Destroyed (20) 100 Value Destroyed (285) 285 Prototype IDs (0) 0 Alien Tech Used (0) 0 Bonus (0) 0 TOTAL SCORE: 785 Bonus ------- None Cogmind --------- Core Integrity 0/250 Matter 253/300 Energy 250/250 System Corruption 0% Temperature Cool (0) Movement Treading (160) Location -10/Mines Parts ------- > --- POWER (1) -------- Ion Engine > --- PROPULSION (2) --- Light Treads Light Treads > --- UTILITY (2) ------ Large Storage Unit > --- WEAPON (2) ------- Assault Rifle Assault Rifle > --- INVENTORY (15) --- Ion Engine Light Ion Engine Light Treads Light Treads Light Treads Light Treads Aluminum Leg Aluminum Leg Wheel Wheel Large Storage Unit Medium Laser Assault Rifle Peak State ------------ > --- POWER ------------ Light Ion Engine > --- PROPULSION ------- Aluminum Leg Aluminum Leg > --- UTILITY ---------- Improved Heat Sink Large Storage Unit > --- WEAPON ----------- Small Laser Assault Rifle > --- INVENTORY -------- Ion Engine Light Ion Engine Light Treads Light Treads Aluminum Leg Aluminum Leg Wheel Wheel Large Storage Unit EM Pulse Gun [Rating: 10] Favorites ----------- Power Ion Engine Engine Ion Engine Propulsion Aluminum Leg Treads Light Treads Leg Aluminum Leg Utility Large Storage Unit Device Improved Heat Sink Storage Large Storage Unit Weapon Assault Rifle Energy Gun Medium Laser Ballistic Gun Assault Rifle Build | -11 -10 -10 ------- Run | Yrd Mat Min Slots Evolved . | . . . Power . | . . . Propulsion . | . . . Utility . | . . . Weapon . | . . . Parts Attached 19 | 1 15 3 Power 2 | . 2 . Engine 2 | . 2 . Core . | . . . Reactor . | . . . Propulsion 7 | . 7 . Treads 2 | . 2 . Leg 5 | . 5 . Wheel . | . . . Hover . | . . . Flight . | . . . Utility 2 | . 2 . Device 1 | . 1 . Storage 1 | . 1 . Processor . | . . . Hackware . | . . . Protection . | . . . Artifact . | . . . Weapon 8 | 1 4 3 Energy Gun 4 | 1 2 1 Energy Cannon . | . . . Ballistic Gun 4 | . 2 2 Ballistic Cannon . | . . . Launcher . | . . . Special Weapon . | . . . Impact Weapon . | . . . Slashing Weapon . | . . . Piercing Weapon . | . . . Special Melee Weapon . | . . . Unidentified Prototypes . | . . . Parts Lost 3 | . . 3 Power . | . . . Propulsion . | . . . Utility 1 | . . 1 Weapon 2 | . . 2 Highest Loss Streak 3 | . . 3 To Critical Strikes . | . . . Average Backups 13 | 6 13 14 Power 2 | 1 2 2 Propulsion 6 | 4 6 8 Utility . | . . 1 Weapon 3 | 1 3 3 Tool/Special . | . . . Unused Backups 14 | . 3 11 Power 3 | . 1 2 Propulsion 8 | . 1 7 Utility 2 | . 1 1 Weapon 1 | . . 1 Tool/Special . | . . . Average Slot Usage (%) 98 | . 98 97 Engine 14 | . 14 14 Treads 5 | . 4 28 Leg 22 | . 24 . Device 12 | . 13 11 Storage 14 | . 14 14 Energy Gun 5 | . 5 2 Ballistic Gun 22 | . 22 25 Peak Build Rating 10 | 6 10 10 Average Rating 9 | 6 9 9 On Entrance 7 | 6 6 10 Avg Prop Armor Cover (%) . | . . . Naked Turns . | . . . Heaviest Build 30 | 11 30 30 Greatest Support 40 | 20 40 40 Greatest Overweight (x) 1 | . 1 . Average Overweight (x) . | . . . Largest Inventory Capacity 15 | 8 15 15 Average Capacity 14 | 8 14 15 Most Carried 15 | 6 15 15 Average Carried 13 | 6 13 14 Final Capacity 15 | 8 15 15 Final Carried 15 | 6 15 13 Class Distribution -------------------- 100% | Mutant Dominant Class ---------------- Mutant | -10/Materials Mutant | -10/Mines Resources | -11 -10 -10 ----------- Run | Yrd Mat Min Matter Collected 529 | 210 291 28 Remotely . | . . . Salvage Created 573 | . 527 46 Parts 44 | . 38 6 Haulers Intercepted 2 | . 2 . Recyclers Shooed 2 | . 2 . Parts Field Recycled . | . . . Retrieved Matter . | . . . Parts Self-Destructed . | . . . Prevented . | . . . Parts Restored . | . . . Kills | -11 -10 -10 ------- Run | Yrd Mat Min Combat Hostiles Destroyed 16 | . 13 3 Guns 16 | . 13 3 Classes Destroyed 4 | . 4 . Hauler 2 | . 2 . Recycler 2 | . 2 . Swarmer 12 | . 9 3 Grunt 4 | . 4 . Best Kill Streak 4 | . 4 3 Combat Bots Only 4 | . 4 3 Max Kills in Single Turn 2 | . 2 1 Gunslinging 1 | . 1 . Exploded . | . . . Melee . | . . . Uniques/NPCs Destroyed . | . . . Combat | -11 -10 -10 -------- Run | Yrd Mat Min Hostile Shots Fired 88 | . 49 39 Missed 24 | . 11 13 Hits 64 | . 38 26 Projectile 64 | . 38 26 AOE 21 | . 1 20 Critical Strikes 1 | . 1 . Part Disruptions 1 | . 1 . Damage Taken 1075 | . 398 677 Core 254 | . 78 176 Absorbed by Shields . | . . . Core Remaining (%) 100 | 100 . . Volleys Fired 53 | . 41 12 Largest 2 | . 2 2 Hottest 70 | . 70 40 Shots Fired 96 | . 74 22 Gun 96 | . 74 22 Cannon . | . . . Launcher . | . . . Special . | . . . Kinetic 72 | . 52 20 Thermal 22 | . 22 . Explosive . | . . . Electromagnetic 2 | . . 2 Robot Hit Streak 9 | . 9 4 Robot Miss Streak 3 | . 3 3 Penetration Max . | . . . Secondary Targets 3 | . 2 1 Max Gunslinging Chain 1 | . 1 1 Shots Hit Robots 61 | . 49 12 Core Hits 31 | . 26 5 Critical Kills 1 | . 1 . Critical Parts Destroyed . | . . . Critical Strikes 1 | . 1 . Destroy 1 | . 1 . Melee Attacks . | . . . Impact . | . . . Slashing . | . . . Piercing . | . . . Sneak Attacks . | . . . Combat Hostiles . | . . . Follow-up Attacks . | . . . Damage Inflicted 841 | . 698 143 Guns 791 | . 648 143 Cannons . | . . . Explosions . | . . . Melee . | . . . Ramming 50 | . 50 . Kinetic 570 | . 427 143 Thermal 221 | . 221 . Explosive . | . . . Electromagnetic . | . . . Impact . | . . . Slashing . | . . . Piercing . | . . . Highest Corruption . | . . . Average Corruption . | . . . Corruption Purged . | . . . Corruption Blocked . | . . . Overload Shots . | . . . Overflow Damage . | . . . Projectiles . | . . . Explosions . | . . . Melee . | . . . Knockbacks . | . . . Impact . | . . . Kinetic . | . . . Secondary . | . . . Self-Inflicted Damage . | . . . Shots . | . . . Rammed . | . . . Targets Rammed 8 | . 8 . Kicked 8 | . 8 . Crushed . | . . . Highest Temperature 63 | . 63 2 Average Temperature 27 | . 29 2 Received Heat Transfer 123 | . 105 18 Siege Activations . | . . . Martial Activations . | . . . Shielding Activations . | . . . Robots Disrupted . | . . . Combat Hostiles . | . . . Robots Corrupted . | . . . Combat Hostiles . | . . . Parts Fried . | . . . Impact Corruptions . | . . . Robots Melted . | . . . Combat Hostiles . | . . . Parts Melted . | . . . Heat Transferred 571 | . 571 . Parts Sabotaged . | . . . Parts Stolen . | . . . Parts Stripped . | . . . Power Chain Reactions . | . . . Alert | -11 -10 -10 ------- Run | Yrd Mat Min Maximum Alert Level . | . . . Low Security (%) 100 | 100 100 100 Level 1 . | . . . Level 2 . | . . . Level 3 . | . . . Level 4 . | . . . Level 5 . | . . . High Security . | . . . Max Security . | . . . Peak Influence 165 | . 165 70 Initial . | . . . Average 40 | . 41 39 Influence Increases 455 | . 385 70 Destroy 0b10 Robot/C 320 | . 260 60 Destroy 0b10 Robot/NC 20 | . 20 . Destroy Leader 74 | . 64 10 Successful Hack 11 | . 11 . Lose Combat Pursuer 30 | . 30 . Influence Decreases 455 | . 385 70 Time Decay 425 | . 385 40 Lost Part 30 | . . 30 Squads Dispatched 2 | . 2 . Investigation 1 | . 1 . Extermination . | . . . Reinforcement 1 | . 1 . Assault . | . . . Garrison . | . . . Intercept . | . . . Searches Triggered . | . . . Construction Impeded . | . . . Haulers Reinforced . | . . . Active Scanning Responses . | . . . Cargo Convoy Interrupts . | . . . Stealth | -11 -10 -10 --------- Run | Yrd Mat Min Distress Signals 4 | . 4 . Communications Jammed . | . . . Distress Signals . | . . . Times Spotted 32 | . 27 5 Peak Tracking Total 6 | . 6 3 Tactical Retreats 2 | . 2 . Traps | -11 -10 -10 ------- Run | Yrd Mat Min Traps Triggered 1 | . 1 . Indirectly . | . . . Trap Hack Attempts . | . . . Triggered . | . . . Disarmed . | . . . Reprogrammed . | . . . Reused . | . . . Traps Extracted . | . . . Installed . | . . . Triggered . | . . . Machines | -11 -10 -10 ---------- Run | Yrd Mat Min Machines Disabled . | . . . Max in Single Turn . | . . . Machines Repaired . | . . . Machines Dismantled . | . . . Machines Sabotaged . | . . . Overloaded Fab Kills . | . . . Hacking | -11 -10 -10 --------- Run | Yrd Mat Min Machines Accessed 7 | . 7 . Terminals 7 | . 7 . Fabricators . | . . . Repair Stations . | . . . Recycling Units . | . . . Scanalyzers . | . . . Garrison Access . | . . . Total Hacks 18 | . 18 . Successful 8 | . 8 . Failed 10 | . 10 . Catastrophic . | . . . Database Lockouts . | . . . Manual 17 | . 17 . Terminals 18 | . 18 . Fabricators . | . . . Repair Stations . | . . . Recycling Units . | . . . Scanalyzers . | . . . Garrison Access . | . . . Terminal Hacks 1 | . 1 . Terminal Index 1 | . 1 . Fabricator Hacks . | . . . Repair Station Hacks . | . . . Recycling Unit Hacks . | . . . Scanalyzer . | . . . Garrison Access Hacks . | . . . Unauthorized Hacks 7 | . 7 . Terminals 7 | . 7 . Botnet 2 | . 2 . Skim 5 | . 5 . Fabricators . | . . . Repair Stations . | . . . Recycling Units . | . . . Scanalyzers . | . . . Garrison Access . | . . . Data Cores Recovered . | . . . Used . | . . . Hacking Detections 5 | . 5 . Full Trace Events . | . . . Feedback Events . | . . . Feedback Blocked . | . . . Robot Schematics Acquired . | . . . Robots Built . | . . . Authchips . | . . . Time . | . . . Total Robot Build Rating . | . . . Part Schematics Acquired . | . . . Parts Built . | . . . Authchips . | . . . Time . | . . . Total Part Build Rating . | . . . Part Studies Acquired . | . . . Parts Repaired . | . . . Time . | . . . Parts Recycled . | . . . Recycled Matter . | . . . Retrieved Matter . | . . . Retrieved Components . | . . . Parts Scanalyzed . | . . . Part Schematics Acquired . | . . . Parts Damaged . | . . . Bothacking | -11 -10 -10 ------------ Run | Yrd Mat Min Used RIF Installer . | . . . Robots Hacked . | . . . Non-combat . | . . . Combat . | . . . Robot Hacks Applied . | . . . Relay Couplers Released . | . . . Fabnet Peak Effective % . | . . . Robots Rewired . | . . . Allies Hacked . | . . . Hacks Repelled . | . . . Allies | -11 -10 -10 -------- Run | Yrd Mat Min Total Allies . | . . . Largest Group . | . . . Highest-Rated Group . | . . . Highest-Rated Ally . | . . . Total Orders . | . . . Ally Attacks . | . . . Total Damage . | . . . Kills . | . . . Allies Corrupted . | . . . Allies Melted . | . . . Intel | -11 -10 -10 ------- Run | Yrd Mat Min Active Infowar (turns) . | . . . Robot Analysis Total . | . . . Derelict Logs Recovered . | . . . Drone Launches . | . . . Drone Recoveries . | . . . Exploration | -11 -10 -10 ------------- Run | Yrd Mat Min Turns Passed 1635 | 4 1527 104 Spaces Moved 660 | 3 617 40 Core . | . . . Treads 57 | . 17 40 Legs 603 | 3 600 . Wheels . | . . . Hover . | . . . Flight . | . . . Fastest Speed 120 | 120 120 160 Average Speed 186 | 120 188 160 Slowest Speed 190 | 120 190 160 Overloaded Moves . | . . . Propulsion Burnouts . | . . . Robots Hopped . | . . . Potential Cave-ins . | . . . Cave-ins Triggered . | . . . Exploration Rate (%) 34 | 2 89 12 Regions Visited 2 Branch Regions 1 Pre-discovered Areas 1 | . 1 . Known Exits Taken . | . . . Unknown Exits Taken 2 | 1 1 . Scrap Searched . | . . . Spaces Dug . | . . . Terrain Destroyed . | . . . Melee . | . . . Projectile . | . . . AOE . | . . . Terrain Rammed . | . . . Walls Destroyed . | . . . Machines Disabled . | . . . Actions | -11 -10 -10 --------- Run | Yrd Mat Min Total 960 | 3 898 59 Wait 203 | . 199 4 Move 658 | 2 616 40 Hop . | . . . Pick Up 8 | . 8 . Fast Attach 6 | . 6 . Attach 3 | . 1 2 Detach . | . . . Swap 10 | 1 8 1 Drop 11 | . 11 . Fire 53 | . 41 12 Melee . | . . . Ram . | . . . Kick 8 | . 8 . Crush . | . . . Escape Stasis . | . . . Rewire . | . . . Trap . | . . . Miscellaneous . | . . . Route ------- -11/Scrapyard -10/Materials (discovered 5 exits: *Mat x3 / [*Min] / Sub) -10/Mines (discovered 2 exits: Mat x2) History --------- Turn | Location | Event 3 | -11/Scrapyard | Discovered new exit (range 2) 5 | -11/Scrapyard | Entered Materials 247 | -10/Materials | Discovered new exit (range 10) 309 | -10/Materials | Build established: Mutant 565 | -10/Materials | Discovered new exit (range 15) 1117 | -10/Materials | Discovered new exit (range 13) 1175 | -10/Materials | Learned location of 2 exits from Mines 1246 | -10/Materials | Identified exit to Materials 1246 | -10/Materials | Identified exit to Subcaves 1305 | -10/Materials | Learned location of Mines (-9) 1354 | -10/Materials | Learned Storage stockpile data 1436 | -10/Materials | Loaded intel: 7 trap records 1532 | -10/Materials | Entered Mines 1611 | -10/Mines | Core integrity fell below 50% 1633 | -10/Mines | Core integrity fell below 20% 1636 | -10/Mines | Destroyed by YI-UF0 with YI-UF0's Doublenader Last Messages --------------- 01489_ >> SKIM: Data seek routine purged. LOCATION=UNKNOWN GOAL=ESCAPE Something is scanning the area. 01532_ S-10 Pest destroyed. 01532_ Switching to secondary target: S-10 Pest. Loading 2 Mines exits... 01535_ S-10 Pest destroyed. 01549_ Acquired 16 matter. 01554_ Acquired 12 matter. 01592_ YI-UF0 mumbles something. 01610_ Imp. Heat Sink destroyed. 01611_ YI-UF0: "BOOM TO YOU TOO!" 01612_ EM Pulse Gun destroyed. 01616_ The unstable cave ceiling collapses. 01626_ Assault Rifle destroyed. 01628_ The unstable cave ceiling collapses. 01634_ G-34 Mercenary destroyed. 01634_ G-47 Trooper destroyed. 01636_ The unstable cave ceiling collapses. Map ----- +----------------------------------------------------+ | | | | | | | | | | | | | | | | | | | | | | | | | | | | | | | ?????????????????????????????????????????????????? | | ?????????????????????????????????????????????????? | | ?????????????????????????????????????????????????? | | ?????????????????????????????????????????????????# | | ???????????????????????????????################### | | ???????????????????????????##### | | ?????????????????????????#### ################# | | ?????????????????????????# # ##?????????????# | | ??????????????????????#### ##????????????# | | ?????????????????###### # = #?? #?????# | | ?????????? @ *% #?????# | | ?????????????????####### g %t= #????? | | ???????????????????????# #???? | | ??????????????????????# # ?????????? | | ??????????????????????# #??????????? | | ??????????????????????## ##??????????? | | ???????????????????????## #???????????? | | ????????????????????????## #???????????? | | ?????????????????????????### #???????????? | | ???????????????????????????## #######???????????? | | ????????????????????????????? ?????????????????? | | ????????????????????????????? #????????????????? | | ????????????????????????????? ????????????????? | | ????????????????????????????? #????????????????? | | ????????????????????????????? #????????????????? | | ????????????????????????????? ????????????????? | | ?????????????????????????????? ????????????????? | | ?